{"text_format":"1","workbook":"xlsx","n_sheets":4,"sheets":["Съдържание","ОПР ЮЛНЦ","ОПР ЮЛНЦ ЕДНОСТРАННА ФОРМА","ОПП ЮЛНЦ"],"not_rendered":{"charts":0,"images":0,"macros":1,"external_links":1,"defined_names":1,"comments":0,"pivot_tables":0},"unopened":[],"bounds":{"document_bytes":16777216,"sheet_cells":100000,"rows_first":2000,"rows_last":500,"rows_between":2000,"halvings":0,"cell_chars":16384,"cell_head_chars":4096},"cells_cut":0,"cells_raw":0,"read":"whole","date_system":"1900"}

{"sheet":"Съдържание","index":0,"n_rows":26,"n_cols":3,"rows_kept":26,"cut":false,"hidden":false,"merged":[[21,0,21,2],[23,0,23,1],[25,0,25,2],[15,0,15,2],[16,0,16,2],[17,0,17,2],[18,0,18,2],[19,0,19,2],[20,0,20,2],[14,0,14,2],[0,0,0,2],[1,0,1,2],[2,0,2,2],[3,0,3,2],[4,0,4,2]]}
["ФИНАНСОВИ ОТЧЕТИ ЗА ЮРИДИЧЕСКИ ЛИЦА С НЕСТОПАНСКА ЦЕЛ"]
["ИЗГОТВЕВН ОТ СЧЕТОВОДНА КАНТОРА ТЕРА "]
["гр. Варна"]
["Помощна таблица за автоматично разнасяне на данните"]
[]
["1.","Попълнете дата на съставяне на отчета:"]
["2.","Попълнете наименование на фирмата:"]
["3. ","Попълнете ЕИК/ ПИК на фирмата:","ЕИК/ПИК:"]
["4.","Попълнете адрес на фирмата:"]
["5.","Попълнете име на управителя:"]
["6.","Попълнете име на съставителя:"]
["7.","Попълнете година на отчитане:"]
[]
[]
["Съдържание:"]
[]
[]
["1. Отчет за приходите и разходите в двустранна форма"]
["2. Отчт за приходите и разходите в едностранна форма"]
["3. Отчет за паричните потици"]
[]
[]
[]
["Tera Accоunting www.tera-bg.com"]
[]
["Продуктът е разработен и се разпространява единствено от Счетоводна кантора ТЕРА. "]

{"sheet":"ОПР ЮЛНЦ","index":1,"n_rows":37,"n_cols":7,"rows_kept":37,"cut":false,"hidden":false,"merged":[[20,0,21,0],[20,1,21,1],[20,2,21,2],[33,0,33,2],[33,4,33,6],[35,0,35,2],[35,4,35,6],[36,0,36,2],[36,4,36,6],[30,0,30,2],[30,4,30,6],[31,0,31,2],[31,4,31,6],[32,0,32,2],[32,4,32,6],[5,0,5,6],[7,0,9,0],[7,1,7,2],[7,4,9,4],[7,5,7,6],[8,1,9,1],[8,2,9,2],[8,5,9,5],[8,6,9,6],[0,0,0,6],[1,0,1,6],[2,0,2,6],[3,0,3,6],[4,0,4,2],[4,4,4,6]]}
[]
["Приложение № 2 към СС 9, Двустранна форма"]
["ОТЧЕТ ЗА ПРИХОДИТЕ И РАЗХОДИТЕ"]
[{"$f":"+Съдържание!C7","v":0}]
[{"$f":"+Съдържание!C8","v":"ЕИК/ПИК:"},null,null,null,{"$f":"+Съдържание!C9","v":0}]
[{"$f":"+Съдържание!C12","v":0}]
[null,null,null,null,null,null,"BGN `000"]
["Наименование  на разходите","Сума /хил.лв/",null,null,"Наименование  на приходите","Сума /хил.лв/"]
[null,"Текуща година","Предходна година",null,null,"Текуща година","Предходна година"]
[]
["а",1,2,null,"а",1,2]
["I. РАЗХОДИ ЗА ДЕЙНОСТТА",null,null,null,"I.ПРИХОДИ ОТ ДЕЙНОСТТА"]
["А. Разходи за регламентирана дейност",null,null,null,"А. Приходи от регламентирана дейност"]
["1. Дарения",null,null,null,"1. Приходи от дарения под условие"]
["2. Други разходи",null,null,null,"2. Приходи от дарения без условие"]
["Всичко А: ",{"$f":"SUM(B14:B15)","v":0},{"$f":"SUM(C14:C15)","v":0},null,"3. Членски внос"]
["Б. Административни разходи",null,null,null,"4. Други приходи"]
["Общо I:",{"$f":"SUM(B16,B17)","v":0},{"$f":"SUM(C16,C17)","v":0},null,"Общо I:",{"$f":"SUM(F14,F15,F16,F17)","v":0},{"$f":"SUM(G14,G15,G16,G17)","v":0}]
["II. ФИНАНСОВИ РАЗХОДИ",null,null,null,"II. ФИНАНСОВИ ПРИХОДИ"]
["3. Разходи за лихви",null,null,null,"5. Приходи от лихви"]
["4. Отрицателни разлики от операции с финансови активи и инструменти",null,null,null,"6. Приходи от съучастия"]
[null,null,null,null,"7. Положителни разлики от операции с финансови активи и инструменти"]
["5. Отрицателни разлики от промяна на валутни курсове",null,null,null,"8. Положителни разлики от промяна на валутни курсове"]
["6. Други разходи по финансови операции",null,null,null,"9. Други приходи от финансови операции"]
["Общо II:",{"$f":"SUM(B20,B21,B23,B24)","v":0},{"$f":"SUM(C20,C21,C23,C24)","v":0},null,"Общо II:",{"$f":"SUM(F20,F21,F22,F23,F24)","v":0},{"$f":"SUM(G20,G21,G22,G23,G24)","v":0}]
["III. ИЗВЪНРЕДНИ РАЗХОДИ",null,null,null,"III. ИЗВЪНРЕДНИ ПРИХОДИ"]
["IV. ЗАГУБА ОТ СТОПАНСКА ДЕЙНОСТ",null,null,null,"IV. ПЕЧАЛБА ОТ СТОПАНСКА ДЕЙНОСТ"]
["V. ОБЩО РАЗХОДИ",{"$f":"SUM(B18,B25,B26,B27)","v":0},{"$f":"SUM(C18,C25,C26,C27)","v":0},null,"V. ОБЩО ПРИХОДИ",{"$f":"SUM(F18,F25,F26,F27)","v":0},{"$f":"SUM(G18,G25,G26,G27)","v":0}]
["VI. РЕЗУЛТАТ",{"$f":"IF(B28<F28,F28-B28,0)","v":0},{"$f":"IF(C28<G28,G28-C28,0)","v":0},null,"VI. РЕЗУЛТАТ",{"$f":"IF(B28>F28,B28-F28,0)","v":0}]
["ВСИЧКО (V+ VI)",{"$f":"SUM(B28,B29)","v":0},{"$f":"SUM(C28,C29)","v":0},null,"ВСИЧКО (V+ VI)",{"$f":"SUM(F28,F29)","v":0},{"$f":"SUM(G28,G29)","v":0}]
["Електронен вариант за финансови отчети, изготвен от Счетоводна кантора ТЕРА- гр. Варна",null,null,null,"Tera Accоunting www.tera-bg.com"]
[]
[{"$f":"+[1]СБ!A79","v":"Дата на съставяне:"}]
[{"$f":"+Съдържание!C6","v":"00:00:00"}]
[]
["Съставител:",null,null,null,"Ръководител:"]
[{"$f":"+Съдържание!C11","v":0},null,null,null,{"$f":"+Съдържание!C10","v":0}]

{"sheet":"ОПР ЮЛНЦ ЕДНОСТРАННА ФОРМА","index":2,"n_rows":31,"n_cols":5,"rows_kept":31,"cut":false,"hidden":false,"merged":[[0,0,0,4],[3,1,3,4],[4,1,4,4],[5,1,5,2],[5,3,5,4],[2,1,2,4],[1,0,1,4],[30,1,30,2],[6,1,6,4],[7,1,7,4],[8,1,9,2],[8,3,8,4],[20,1,20,4],[21,1,21,4],[11,1,11,2],[18,1,18,2],[17,1,17,2],[16,1,16,2],[10,1,10,2],[23,1,23,2],[24,1,24,2],[26,1,26,2],[27,1,27,2],[29,1,29,2],[15,1,15,2],[14,1,14,2],[13,1,13,2],[12,1,12,2],[19,1,19,2]]}
[]
["Приложение № 3 към СС 9, Едностранна форма"]
[]
[null,"ОТЧЕТ ЗА ПРИХОДИТЕ И РАЗХОДИТЕ"]
[null,{"$f":"+Съдържание!C7","v":0}]
[null,{"$f":"+Съдържание!C8","v":"ЕИК/ПИК:"},null,{"$f":"+Съдържание!C9","v":0}]
[null,{"$f":"+Съдържание!C12","v":0}]
[]
[null,"Наименование на приходите и разходите",null,"Сума (хил. лв.)"]
[null,null,null,"Текуща година","Предходна година"]
[null,"а",null,1,2]
[null,"1. Приходи от дейността"]
[null,"2. Разходи за дейността"]
[null,"РЕЗУЛТАТ (1-2)",null,{"$f":"D12-D13","v":0},{"$f":"E12-E13","v":0}]
[null,"3. Финансови приходи"]
[null,"4. Финансови разходи"]
[null,"5. Извънредни приходи"]
[null,"6. Извънредни разходи"]
[null,"7.Печалба (загуба) от стопанска дейност"]
[null,"РЕЗУЛТАТ (1-2+3-4+5-6+(-)7)",null,{"$f":"IF(D19>0,(D14+D15-D16+D17-D18)+D19,(D14+D15-D16+D17-D18)+D19)","v":0},{"$f":"IF(E19>0,(E14+E15-E16+E17-E18)+E19,(E14+E15-E16+E17-E18)+E19)","v":0}]
[null,"Електронен вариант за финансови отчети, изготвен от Счетоводна кантора ТЕРА- гр. Варна"]
[null,"Tera Accоunting www.tera-bg.com"]
[]
[null,"Дата на съставяне:"]
[null,{"$f":"+Съдържание!C6","v":"00:00:00"}]
[]
[null,"Съставител:"]
[null,{"$f":"+Съдържание!C11","v":0}]
[]
[null,"Ръководител:"]
[null,{"$f":"+Съдържание!C10","v":0}]

{"sheet":"ОПП ЮЛНЦ","index":3,"n_rows":58,"n_cols":4,"rows_kept":58,"cut":false,"hidden":false,"merged":[[56,0,56,2],[57,0,57,2],[54,0,54,2],[10,0,10,1],[50,0,50,2],[21,0,21,1],[29,0,29,1],[37,0,37,1],[44,0,44,1],[51,0,51,2],[52,0,52,3],[53,0,53,2],[48,0,48,1],[48,2,48,3],[5,0,5,3],[6,0,6,3],[7,0,7,2],[8,0,9,1],[8,2,9,2],[8,3,9,3],[0,1,0,3],[1,0,1,3],[2,0,2,3],[3,0,3,3],[4,0,4,2]]}
[]
["Приложение № 4 към СС 9"]
["ОТЧЕТ ЗА ПАРИЧНИЯ ПОТОК"]
[{"$f":"+Съдържание!C7","v":0}]
[{"$f":"+Съдържание!C8","v":"ЕИК/ПИК:"}]
[{"$f":"+Съдържание!C12","v":0}]
[]
[null,null,null,"BGN `000"]
["Наименовани на потоците",null,"Текуща година","Предходна година"]
[]
["а",null,1,2]
["I.","НАЛИЧНОСТ НА ПАРИЧНИТЕ СРЕДСТВА В НАЧАЛОТО НА ПЕРИОДА"]
["II.","ПАРИЧНИ ПОТОЦИ ОТ НЕСТОПАНСКА ДЕЙНОСТ"]
["А.","Постъпления от нестопанска дейност"]
["1.","Получени дарения под условие"]
["2.","Получени дарения без условие"]
["3.","Постъпления от членски внос"]
["4.","Постъпления от осигурителни предприятия"]
["5.","Получени обезщетения за застраховане"]
["6.","Постъпления от банкови и валутни операции"]
["7.","Други постъпления"]
["Всичко постъпления от нестопанска дейност",null,{"$f":"SUM(C15:C21)","v":0},{"$f":"SUM(D15:D21)","v":0}]
["Б.","Плащания за нестопанска дейност"]
[1,"Изплатени дарения"]
[2,"Изплатени заплати"]
[3,"Изплатени осигуровки"]
[4,"Плащания по банкови и валутни операции"]
[5,"Плащания за услуги"]
[6,"Други плащания"]
["Всичко плащания за нестопанска дейност",null,{"$f":"SUM(C24:C29)","v":0},{"$f":"SUM(D24:D29)","v":0}]
["В.","Нетен паричен поток от нестопанска дейност",{"$f":"C22-C30","v":0},{"$f":"D22-D30","v":0}]
["III.","ПАРИЧНИ ПОТОЦИ ОТ СТОПАНСКА ДЕЙНОСТ"]
["А.","Постъпления от стопанска дейност"]
[1,"Постъпления от продажба на активи и услуги"]
[2,"Постъпления от клиенти"]
[3,"Постъпления от банкови и валутни операции"]
[4,"Други постъпления"]
["Всичко постъпления от стопанска дейност"]
["Б.","плащания за стопанска дейност"]
[1,"Плащания за услуги и за придобити активи"]
[2,"Плащания към доставчици"]
[3,"Изплатени данъци"]
[4,"Плащания по банкови и валутни операции"]
[5,"Други плащания"]
["Всичко плащания за стопанската дейност"]
["В.","Нетен паричен поток от стопанската дейност",{"$f":"C38-C45","v":0},{"$f":"D38-D45","v":0}]
["IV.","Наличност на парични средства в края на периода"]
["V.","ИЗМЕНЕНИЕ НА ПАРИЧНИТЕ СРЕДСТВА ПРЕЗ ПЕРИОДА"]
["Електронен вариант за финансови отчети, изготвен от Счетоводна кантора ТЕРА- гр. Варна",null,"Tera Accоunting www.tera-bg.com"]
[]
[{"$f":"+'[1]ОПР съкратен'!A26:C26","v":"Дата на съставяне:"}]
[{"$f":"+Съдържание!C6","v":"00:00:00"}]
[]
[{"$f":"+'[1]ОПР съкратен'!A29:C29","v":"Съставител:"}]
[{"$f":"+Съдържание!C11","v":0}]
[]
["Ръководител:"]
[{"$f":"+Съдържание!C10","v":0}]